[Event "December 19 Early 2023"]
[Site "https://www.chess.com"]
[Date "2023.12.19"]
[Round "4"]
[White "Haring, Filip"]
[Black "Hirneise, Jens"]
[Result "1-0"]
[Board "85"]
[TimeControl "180+1"]
[WhiteFideId "14933080"]
[BlackFideId "24614734"]
[WhiteElo "2375"]
[BlackElo "2311"]
[WhiteTeam "SVK"]
[BlackTeam "GER"]
[WhiteClock "0:00:19"]
[BlackClock "0:00:21"]

1. Nf3 {[%clk 0:03:00]}  g6 {[%clk 0:02:55]} 2. d4 {[%clk 0:02:56]}  Bg7 {[%clk 0:02:54]} 3. Bf4 {[%clk 0:02:56]}  Nf6 {[%clk 0:02:50]} 4. h3 {[%clk 0:02:57]}  O-O {[%clk 0:02:44]} 5. e3 {[%clk 0:02:57]}  d5 {[%clk 0:02:44]} 6. c4 {[%clk 0:02:54]}  c5 {[%clk 0:02:43]} 7. Nc3 {[%clk 0:02:47]}  cxd4 {[%clk 0:02:42]} 8. exd4 {[%clk 0:02:44]}  Nc6 {[%clk 0:02:41]} 9. c5 {[%clk 0:02:36]}  Ne4 {[%clk 0:02:39]} 10. Be2 {[%clk 0:02:17]}  e5 {[%clk 0:02:34]} 11. Nxe5 {[%clk 0:02:03]}  Nxe5 {[%clk 0:02:30]} 12. Bxe5 {[%clk 0:01:45]}  Nxc3 {[%clk 0:02:29]} 13. bxc3 {[%clk 0:01:44]}  Qa5 {[%clk 0:02:21]} 14. O-O {[%clk 0:01:12]}  Bxe5 {[%clk 0:01:54]} 15. dxe5 {[%clk 0:01:13]}  Qxc3 {[%clk 0:01:40]} 16. Qxd5 {[%clk 0:01:09]}  Be6 {[%clk 0:01:40]} 17. Qxb7 {[%clk 0:01:05]}  Qxe5 {[%clk 0:01:39]} 18. Bf3 {[%clk 0:01:01]}  Qxc5 {[%clk 0:01:31]} 19. Qxa8 {[%clk 0:00:58]}  Rxa8 {[%clk 0:01:32]} 20. Bxa8 {[%clk 0:00:58]}  Bd5 {[%clk 0:01:11]} 21. Rac1 {[%clk 0:00:49]}  Qa5 {[%clk 0:01:11]} 22. Bxd5 {[%clk 0:00:44]}  Qxd5 {[%clk 0:01:12]} 23. Rc2 {[%clk 0:00:41]}  h5 {[%clk 0:01:08]} 24. Rfc1 {[%clk 0:00:33]}  a5 {[%clk 0:01:02]} 25. a4 {[%clk 0:00:31]}  Qb3 {[%clk 0:00:59]} 26. Rc4 {[%clk 0:00:30]}  Qa2 {[%clk 0:00:58]} 27. R1c3 {[%clk 0:00:25]}  Qe2 {[%clk 0:00:52]} 28. g3 {[%clk 0:00:18]}  Qd1+ {[%clk 0:00:48]} 29. Kg2 {[%clk 0:00:18]}  Qd5+ {[%clk 0:00:48]} 30. Kg1 {[%clk 0:00:16]}  Qd1+ {[%clk 0:00:48]} 31. Kh2 {[%clk 0:00:16]}  Qe2 {[%clk 0:00:21]} 32. Rf4 {[%clk 0:00:15]}  Qe7 {[%clk 0:00:19]} 33. Rcf3 {[%clk 0:00:10]}  f5 {[%clk 0:00:15]} 34. h4 {[%clk 0:00:10]}  Qd7 {[%clk 0:00:14]} 35. Re3 {[%clk 0:00:09]}  Kf7 {[%clk 0:00:14]} 36. Rc3 {[%clk 0:00:05]}  Qd2 {[%clk 0:00:12]} 37. Rc7+ {[%clk 0:00:03]}  Kf6 {[%clk 0:00:12]} 38. Rc6+ {[%clk 0:00:03]}  Kf7 {[%clk 0:00:12]} 39. Ra6 {[%clk 0:00:02]}  Kg7 {[%clk 0:00:10]} 40. Ra7+ {[%clk 0:00:03]}  Kf6 {[%clk 0:00:10]} 41. Ra6+ {[%clk 0:00:04]}  Kg7 {[%clk 0:00:10]} 42. Kg2 {[%clk 0:00:03]}  Qd5+ {[%clk 0:00:10]} 43. Kg1 {[%clk 0:00:03]}  Qd1+ {[%clk 0:00:10]} 44. Kh2 {[%clk 0:00:04]}  Qd5 {[%clk 0:00:10]} 45. Rb6 {[%clk 0:00:03]}  Qc5 {[%clk 0:00:10]} 46. Rb5 {[%clk 0:00:03]}  Qc7 {[%clk 0:00:10]} 47. Rd4 {[%clk 0:00:02]}  Qa7 {[%clk 0:00:07]} 48. Rbd5 {[%clk 0:00:01]}  Qb6 {[%clk 0:00:07]} 49. Rd6 {[%clk 0:00:02]}  Qb2 {[%clk 0:00:06]} 50. Rd7+ {[%clk 0:00:02]}  Kf6 {[%clk 0:00:06]} 51. Kg2 {[%clk 0:00:03]}  Qc2 {[%clk 0:00:05]} 52. R4d6+ {[%clk 0:00:03]}  Ke5 {[%clk 0:00:05]} 53. Rxg6 {[%clk 0:00:04]}  Qxa4 {[%clk 0:00:05]} 54. Re7+ {[%clk 0:00:04]}  Kd5 {[%clk 0:00:05]} 55. Rf6 {[%clk 0:00:04]}  Qc2 {[%clk 0:00:04]} 56. Rd7+ {[%clk 0:00:05]}  Ke5 {[%clk 0:00:04]} 57. Ra6 {[%clk 0:00:05]}  Qe4+ {[%clk 0:00:03]} 58. Kh2 {[%clk 0:00:05]}  a4 {[%clk 0:00:04]} 59. Re7+ {[%clk 0:00:05]}  Kd4 {[%clk 0:00:04]} 60. Rxe4+ {[%clk 0:00:06]}  Kxe4 {[%clk 0:00:04]} 61. Rxa4+ {[%clk 0:00:07]}  Kf3 {[%clk 0:00:05]} 62. Rf4+ {[%clk 0:00:07]}  Ke2 {[%clk 0:00:05]} 63. Rxf5 {[%clk 0:00:08]}  Kf1 {[%clk 0:00:06]} 64. Rg5 {[%clk 0:00:07]}  Ke2 {[%clk 0:00:07]} 65. Rxh5 {[%clk 0:00:08]}  Kf1 {[%clk 0:00:08]} 66. Rf5 {[%clk 0:00:08]}  Ke2 {[%clk 0:00:09]} 67. g4 {[%clk 0:00:09]}  Kf1 {[%clk 0:00:10]} 68. Kg3 {[%clk 0:00:09]}  Ke2 {[%clk 0:00:11]} 69. g5 {[%clk 0:00:10]}  Kf1 {[%clk 0:00:12]} 70. Kg4 {[%clk 0:00:11]}  Kg1 {[%clk 0:00:12]} 71. f4 {[%clk 0:00:11]}  Kh1 {[%clk 0:00:13]} 72. h5 {[%clk 0:00:12]}  Kg1 {[%clk 0:00:14]} 73. g6 {[%clk 0:00:13]}  Kh1 {[%clk 0:00:14]} 74. h6 {[%clk 0:00:14]}  Kg1 {[%clk 0:00:15]} 75. h7 {[%clk 0:00:15]}  Kg2 {[%clk 0:00:15]} 76. g7 {[%clk 0:00:16]}  Kg1 {[%clk 0:00:16]} 77. Rg5 {[%clk 0:00:16]}  Kg2 {[%clk 0:00:17]} 78. f5 {[%clk 0:00:16]}  Kg1 {[%clk 0:00:18]} 79. f6 {[%clk 0:00:17]}  Kf2 {[%clk 0:00:17]} 80. Re5 {[%clk 0:00:17]}  Kg1 {[%clk 0:00:18]} 81. f7 {[%clk 0:00:18]}  Kg2 {[%clk 0:00:18]} 82. Kf4 {[%clk 0:00:19]}  Kg1 {[%clk 0:00:19]} 83. Ke4 {[%clk 0:00:19]}  Kg2 {[%clk 0:00:20]} 84. f8=Q {[%clk 0:00:18]}  Kg1 {[%clk 0:00:21]} 85. g8=Q+ {[%clk 0:00:19]}  Kh2 {[%clk 0:00:21]} 86. h8=Q# {[%clk 0:00:19]} 1-0

[Event "December 19 Early 2023"]
[Site "https://www.chess.com"]
[Date "2023.12.19"]
[Round "4"]
[White "Cieslak, Patryk"]
[Black "Davidson, Kevin"]
[Result "1-0"]
[Board "88"]
[TimeControl "180+1"]
[WhiteFideId "21078882"]
[BlackFideId "2056810"]
[WhiteElo "2149"]
[BlackElo "2151"]
[WhiteTeam "POL"]
[BlackTeam "USA"]
[WhiteClock "0:00:04"]
[BlackClock "0:00:00"]

1. e4 {[%clk 0:03:00]}  c5 {[%clk 0:02:59]} 2. Nf3 {[%clk 0:03:00]}  d6 {[%clk 0:03:00]} 3. d4 {[%clk 0:03:00]}  cxd4 {[%clk 0:03:00]} 4. Nxd4 {[%clk 0:03:01]}  Nf6 {[%clk 0:03:01]} 5. Nc3 {[%clk 0:03:01]}  a6 {[%clk 0:03:01]} 6. Rg1 {[%clk 0:03:02]}  e5 {[%clk 0:03:01]} 7. Nb3 {[%clk 0:03:02]}  Be6 {[%clk 0:03:01]} 8. g4 {[%clk 0:03:01]}  h6 {[%clk 0:03:01]} 9. Be3 {[%clk 0:02:58]}  Nc6 {[%clk 0:02:57]} 10. h4 {[%clk 0:02:57]}  d5 {[%clk 0:02:56]} 11. exd5 {[%clk 0:02:54]}  Nxd5 {[%clk 0:02:56]} 12. Nxd5 {[%clk 0:02:55]}  Bxd5 {[%clk 0:02:41]} 13. c3 {[%clk 0:02:44]}  Be7 {[%clk 0:02:37]} 14. g5 {[%clk 0:02:44]}  hxg5 {[%clk 0:02:35]} 15. hxg5 {[%clk 0:02:45]}  g6 {[%clk 0:02:11]} 16. Qg4 {[%clk 0:02:39]}  Be6 {[%clk 0:02:07]} 17. Qa4 {[%clk 0:02:38]}  b5 {[%clk 0:01:54]} 18. Qe4 {[%clk 0:02:38]}  Qd5 {[%clk 0:01:51]} 19. Bg2 {[%clk 0:02:33]}  Rd8 {[%clk 0:01:37]} 20. Qc2 {[%clk 0:01:39]}  Qc4 {[%clk 0:01:32]} 21. Nd2 {[%clk 0:01:32]}  Nb4 {[%clk 0:01:23]} 22. Qb1 {[%clk 0:00:59]}  Nd3+ {[%clk 0:01:19]} 23. Kf1 {[%clk 0:00:57]}  Qc7 {[%clk 0:00:35]} 24. Be4 {[%clk 0:00:27]}  Nf4 {[%clk 0:00:26]} 25. Bxf4 {[%clk 0:00:23]}  exf4 {[%clk 0:00:27]} 26. Qc2 {[%clk 0:00:18]}  Qe5 {[%clk 0:00:14]} 27. Nf3 {[%clk 0:00:17]}  Qd6 {[%clk 0:00:12]} 28. b3 {[%clk 0:00:13]}  Bh3+ {[%clk 0:00:11]} 29. Ke2 {[%clk 0:00:13]}  Rh5 {[%clk 0:00:05]} 30. Rad1 {[%clk 0:00:12]}  Qc7 {[%clk 0:00:06]} 31. Rxd8+ {[%clk 0:00:13]}  Qxd8 {[%clk 0:00:06]} 32. Qd3 {[%clk 0:00:12]}  Qxd3+ {[%clk 0:00:06]} 33. Kxd3 {[%clk 0:00:13]}  Be6 {[%clk 0:00:04]} 34. c4 {[%clk 0:00:13]}  bxc4+ {[%clk 0:00:03]} 35. bxc4 {[%clk 0:00:13]}  Kd7 {[%clk 0:00:04]} 36. Ne5+ {[%clk 0:00:13]}  Kc7 {[%clk 0:00:03]} 37. Nf3 {[%clk 0:00:13]}  Bc5 {[%clk 0:00:02]} 38. Rf1 {[%clk 0:00:10]}  Rh8 {[%clk 0:00:02]} 39. Kc3 {[%clk 0:00:08]}  Rd8 {[%clk 0:00:02]} 40. Bd3 {[%clk 0:00:08]}  a5 {[%clk 0:00:02]} 41. Kc2 {[%clk 0:00:07]}  Bb4 {[%clk 0:00:02]} 42. Rh1 {[%clk 0:00:04]}  a4 {[%clk 0:00:00]} 43. Ne5 {[%clk 0:00:04]} 1-0

[Event "December 19 Early 2023"]
[Site "https://www.chess.com"]
[Date "2023.12.19"]
[Round "4"]
[White "Tologon tegin, Semetei"]
[Black "Iljin, Timofey"]
[Result "0-1"]
[Board "92"]
[TimeControl "180+1"]
[WhiteFideId "13800574"]
[BlackFideId "14110180"]
[WhiteElo "2258"]
[BlackElo "2380"]
[WhiteTeam "KGZ"]
[BlackTeam "UKR"]
[WhiteClock "0:00:00"]
[BlackClock "0:00:12"]

1. Nf3 {[%clk 0:02:46]}  f5 {[%clk 0:02:57]} 2. e3 {[%clk 0:02:46]}  Nf6 {[%clk 0:02:57]} 3. c4 {[%clk 0:02:44]}  g6 {[%clk 0:02:58]} 4. b3 {[%clk 0:02:44]}  Bg7 {[%clk 0:02:58]} 5. Bb2 {[%clk 0:02:45]}  O-O {[%clk 0:02:59]} 6. d4 {[%clk 0:02:44]}  d6 {[%clk 0:03:00]} 7. Nbd2 {[%clk 0:02:44]}  Qe8 {[%clk 0:03:00]} 8. c5 {[%clk 0:02:16]}  Nc6 {[%clk 0:02:56]} 9. cxd6 {[%clk 0:02:07]}  cxd6 {[%clk 0:02:53]} 10. Bc4+ {[%clk 0:02:02]}  Kh8 {[%clk 0:02:52]} 11. d5 {[%clk 0:02:01]}  Nb4 {[%clk 0:02:40]} 12. O-O {[%clk 0:01:24]}  b5 {[%clk 0:02:32]} 13. Be2 {[%clk 0:01:23]}  Nbxd5 {[%clk 0:02:30]} 14. a4 {[%clk 0:01:01]}  bxa4 {[%clk 0:02:26]} 15. bxa4 {[%clk 0:00:54]}  e5 {[%clk 0:02:25]} 16. Nc4 {[%clk 0:00:52]}  Qd8 {[%clk 0:01:46]} 17. Ba3 {[%clk 0:00:48]}  Nc3 {[%clk 0:01:47]} 18. Qc2 {[%clk 0:00:39]}  Nxe2+ {[%clk 0:01:46]} 19. Qxe2 {[%clk 0:00:40]}  Ba6 {[%clk 0:01:46]} 20. Qa2 {[%clk 0:00:37]}  Ne4 {[%clk 0:01:37]} 21. Rac1 {[%clk 0:00:28]}  Rc8 {[%clk 0:01:25]} 22. Rfd1 {[%clk 0:00:28]}  Qe8 {[%clk 0:00:35]} 23. Nxd6 {[%clk 0:00:21]}  Rxc1 {[%clk 0:00:28]} 24. Rxc1 {[%clk 0:00:10]}  Qxa4 {[%clk 0:00:19]} 25. Nxe4 {[%clk 0:00:02]}  fxe4 {[%clk 0:00:19]} 26. Ng5 {[%clk 0:00:02]}  h6 {[%clk 0:00:15]} 27. Nf7+ {[%clk 0:00:00]}  Kh7 {[%clk 0:00:12]} 0-1

[Event "December 19 Early 2023"]
[Site "https://www.chess.com"]
[Date "2023.12.19"]
[Round "4"]
[White "Durucay, Uygar"]
[Black "Timerkhanov, Alexander"]
[Result "1-0"]
[Board "93"]
[TimeControl "180+1"]
[WhiteFideId "44591560"]
[BlackFideId "24177938"]
[WhiteElo "1913"]
[BlackElo "2278"]
[WhiteTeam "TUR"]
[BlackTeam "RUS"]
[WhiteClock "0:00:18"]
[BlackClock "0:00:04"]

1. d4 {[%clk 0:02:54]}  d5 {[%clk 0:02:59]} 2. c4 {[%clk 0:02:54]}  c6 {[%clk 0:02:59]} 3. cxd5 {[%clk 0:02:54]}  cxd5 {[%clk 0:02:59]} 4. Bf4 {[%clk 0:02:55]}  Nc6 {[%clk 0:02:59]} 5. e3 {[%clk 0:02:55]}  Nf6 {[%clk 0:02:58]} 6. Nc3 {[%clk 0:02:53]}  a6 {[%clk 0:02:58]} 7. Bd3 {[%clk 0:02:52]}  Bg4 {[%clk 0:02:54]} 8. Nge2 {[%clk 0:02:52]}  Bxe2 {[%clk 0:02:53]} 9. Qxe2 {[%clk 0:02:51]}  e6 {[%clk 0:02:53]} 10. O-O {[%clk 0:02:51]}  Bd6 {[%clk 0:02:53]} 11. Bxd6 {[%clk 0:02:51]}  Qxd6 {[%clk 0:02:54]} 12. a3 {[%clk 0:02:51]}  O-O {[%clk 0:02:55]} 13. Rac1 {[%clk 0:02:51]}  b5 {[%clk 0:02:53]} 14. a4 {[%clk 0:02:43]}  b4 {[%clk 0:02:46]} 15. Nb1 {[%clk 0:02:43]}  a5 {[%clk 0:02:46]} 16. Nd2 {[%clk 0:02:43]}  e5 {[%clk 0:02:34]} 17. dxe5 {[%clk 0:02:43]}  Nxe5 {[%clk 0:02:33]} 18. Nb3 {[%clk 0:02:43]}  Nfg4 {[%clk 0:02:29]} 19. g3 {[%clk 0:01:51]}  Qh6 {[%clk 0:02:08]} 20. h4 {[%clk 0:01:50]}  g5 {[%clk 0:01:31]} 21. Bf5 {[%clk 0:01:48]}  Nf6 {[%clk 0:01:26]} 22. hxg5 {[%clk 0:01:36]}  Qxg5 {[%clk 0:01:26]} 23. Nd4 {[%clk 0:01:31]}  Ne4 {[%clk 0:01:19]} 24. Kg2 {[%clk 0:01:21]}  Ng6 {[%clk 0:01:10]} 25. Rh1 {[%clk 0:01:18]}  Rfe8 {[%clk 0:01:09]} 26. Rh5 {[%clk 0:01:11]}  Qf6 {[%clk 0:01:09]} 27. Rch1 {[%clk 0:01:07]}  Ng5 {[%clk 0:01:04]} 28. Qg4 {[%clk 0:01:04]}  Ne6 {[%clk 0:00:36]} 29. Bxe6 {[%clk 0:00:57]}  fxe6 {[%clk 0:00:34]} 30. Rxh7 {[%clk 0:00:56]}  e5 {[%clk 0:00:22]} 31. R1h6 {[%clk 0:00:44]}  Ra6 {[%clk 0:00:23]} 32. Nf5 {[%clk 0:00:41]}  d4 {[%clk 0:00:18]} 33. Rg7+ {[%clk 0:00:33]}  Qxg7 {[%clk 0:00:18]} 34. Nxg7 {[%clk 0:00:34]}  Kxg7 {[%clk 0:00:19]} 35. Rh1 {[%clk 0:00:26]}  Rd6 {[%clk 0:00:18]} 36. exd4 {[%clk 0:00:24]}  exd4 {[%clk 0:00:19]} 37. Qh5 {[%clk 0:00:21]}  d3 {[%clk 0:00:18]} 38. Qh7+ {[%clk 0:00:20]}  Kf6 {[%clk 0:00:18]} 39. Rh6 {[%clk 0:00:19]}  Kg5 {[%clk 0:00:12]} 40. f4+ {[%clk 0:00:18]}  Kf5 {[%clk 0:00:10]} 41. Qf7+ {[%clk 0:00:17]}  Rf6 {[%clk 0:00:07]} 42. Qxe8 {[%clk 0:00:17]}  d2 {[%clk 0:00:07]} 43. Qd7+ {[%clk 0:00:17]}  Ke4 {[%clk 0:00:06]} 44. Qxd2 {[%clk 0:00:17]}  Nxf4+ {[%clk 0:00:06]} 45. Qxf4+ {[%clk 0:00:17]}  Rxf4 {[%clk 0:00:04]} 46. gxf4 {[%clk 0:00:18]} 1-0

[Event "December 19 Early 2023"]
[Site "https://www.chess.com"]
[Date "2023.12.19"]
[Round "4"]
[White "Rangel, Daniel"]
[Black "Wu, Derek"]
[Result "1-0"]
[Board "94"]
[TimeControl "180+1"]
[WhiteFideId "2124475"]
[BlackFideId "30914558"]
[WhiteElo "2267"]
[BlackElo "2211"]
[WhiteTeam "BRA"]
[BlackTeam "USA"]
[WhiteClock "0:00:13"]
[BlackClock "0:00:11"]

1. c4 {[%clk 0:03:00]}  Nf6 {[%clk 0:02:58]} 2. g3 {[%clk 0:03:01]}  c6 {[%clk 0:02:57]} 3. Bg2 {[%clk 0:03:02]}  d5 {[%clk 0:02:57]} 4. cxd5 {[%clk 0:03:01]}  cxd5 {[%clk 0:02:57]} 5. Nf3 {[%clk 0:03:02]}  Nc6 {[%clk 0:02:58]} 6. O-O {[%clk 0:03:03]}  Bg4 {[%clk 0:02:58]} 7. d3 {[%clk 0:02:59]}  e6 {[%clk 0:02:58]} 8. Bf4 {[%clk 0:02:54]}  Bd6 {[%clk 0:02:56]} 9. Bxd6 {[%clk 0:02:54]}  Qxd6 {[%clk 0:02:57]} 10. Nc3 {[%clk 0:02:54]}  O-O {[%clk 0:02:56]} 11. a3 {[%clk 0:02:52]}  a6 {[%clk 0:02:55]} 12. Rc1 {[%clk 0:02:51]}  b5 {[%clk 0:02:43]} 13. Qd2 {[%clk 0:02:43]}  Bxf3 {[%clk 0:02:42]} 14. Bxf3 {[%clk 0:02:39]}  Nd4 {[%clk 0:02:42]} 15. Qe3 {[%clk 0:02:33]}  Nb3 {[%clk 0:02:28]} 16. Rc2 {[%clk 0:02:21]}  Rac8 {[%clk 0:02:21]} 17. d4 {[%clk 0:02:06]}  Na5 {[%clk 0:02:14]} 18. Qd3 {[%clk 0:02:03]}  Rc4 {[%clk 0:02:01]} 19. Nb1 {[%clk 0:01:52]}  Rfc8 {[%clk 0:01:57]} 20. Rfc1 {[%clk 0:01:52]}  g6 {[%clk 0:01:47]} 21. b3 {[%clk 0:01:45]}  R4c6 {[%clk 0:01:36]} 22. Kg2 {[%clk 0:01:41]}  R8c7 {[%clk 0:01:27]} 23. h4 {[%clk 0:01:40]}  h5 {[%clk 0:01:26]} 24. e3 {[%clk 0:01:37]}  Qd8 {[%clk 0:01:21]} 25. Rc5 {[%clk 0:01:06]}  Qc8 {[%clk 0:01:14]} 26. Qc3 {[%clk 0:00:59]}  Rxc5 {[%clk 0:00:16]} 27. dxc5 {[%clk 0:01:00]}  d4 {[%clk 0:00:17]} 28. Qxa5 {[%clk 0:00:56]}  dxe3 {[%clk 0:00:17]} 29. fxe3 {[%clk 0:00:56]}  Rxc5 {[%clk 0:00:17]} 30. Rxc5 {[%clk 0:00:55]}  Qxc5 {[%clk 0:00:18]} 31. Qd8+ {[%clk 0:00:50]}  Kg7 {[%clk 0:00:18]} 32. Qd2 {[%clk 0:00:48]}  Qf5 {[%clk 0:00:18]} 33. Nc3 {[%clk 0:00:45]}  e5 {[%clk 0:00:18]} 34. e4 {[%clk 0:00:40]}  Qe6 {[%clk 0:00:17]} 35. Nd5 {[%clk 0:00:41]}  Nd7 {[%clk 0:00:15]} 36. Qc3 {[%clk 0:00:34]}  Kh7 {[%clk 0:00:12]} 37. Qc7 {[%clk 0:00:32]}  Kg7 {[%clk 0:00:13]} 38. b4 {[%clk 0:00:32]}  Nf8 {[%clk 0:00:11]} 39. Qb6 {[%clk 0:00:28]}  Qc8 {[%clk 0:00:10]} 40. Qf6+ {[%clk 0:00:26]}  Kh7 {[%clk 0:00:11]} 41. Qxf7+ {[%clk 0:00:26]}  Kh8 {[%clk 0:00:11]} 42. Be2 {[%clk 0:00:17]}  Ne6 {[%clk 0:00:10]} 43. Qf6+ {[%clk 0:00:15]}  Kh7 {[%clk 0:00:10]} 44. Qxe5 {[%clk 0:00:14]}  Ng7 {[%clk 0:00:09]} 45. Qf4 {[%clk 0:00:14]}  Qc2 {[%clk 0:00:09]} 46. Nf6+ {[%clk 0:00:13]}  Kh8 {[%clk 0:00:09]} 47. Qb8+ {[%clk 0:00:13]}  Ne8 {[%clk 0:00:10]} 48. Qxe8+ {[%clk 0:00:13]}  Kg7 {[%clk 0:00:11]} 49. Qe7+ {[%clk 0:00:13]}  Kh8 {[%clk 0:00:11]} 50. Qh7# {[%clk 0:00:13]} 1-0

[Event "December 19 Early 2023"]
[Site "https://www.chess.com"]
[Date "2023.12.19"]
[Round "4"]
[White "Aaditya Dhingra"]
[Black "Herman, Matthew"]
[Result "1-0"]
[Board "95"]
[TimeControl "180+1"]
[WhiteFideId "25678191"]
[BlackFideId "2028964"]
[WhiteElo "2269"]
[BlackElo "2368"]
[WhiteTeam "IND"]
[BlackTeam "USA"]
[WhiteClock "0:00:24"]
[BlackClock "0:00:07"]

1. a3 {[%clk 0:02:59]}  g6 {[%clk 0:02:57]} 2. b4 {[%clk 0:02:58]}  Bg7 {[%clk 0:02:58]} 3. Ra2 {[%clk 0:02:59]}  e5 {[%clk 0:02:56]} 4. Bb2 {[%clk 0:02:58]}  d5 {[%clk 0:02:55]} 5. g3 {[%clk 0:02:56]}  Be6 {[%clk 0:02:53]} 6. Bg2 {[%clk 0:02:55]}  c6 {[%clk 0:02:47]} 7. e3 {[%clk 0:02:51]}  a5 {[%clk 0:02:31]} 8. bxa5 {[%clk 0:02:47]}  d4 {[%clk 0:02:28]} 9. Ra1 {[%clk 0:02:44]}  Rxa5 {[%clk 0:02:11]} 10. exd4 {[%clk 0:02:42]}  exd4 {[%clk 0:02:03]} 11. Nf3 {[%clk 0:02:41]}  Ne7 {[%clk 0:01:33]} 12. d3 {[%clk 0:02:37]}  O-O {[%clk 0:01:26]} 13. O-O {[%clk 0:02:36]}  Rh5 {[%clk 0:01:14]} 14. Nbd2 {[%clk 0:02:32]}  c5 {[%clk 0:00:57]} 15. Rb1 {[%clk 0:02:25]}  Nd5 {[%clk 0:00:51]} 16. Ne4 {[%clk 0:02:22]}  b6 {[%clk 0:00:42]} 17. Re1 {[%clk 0:02:13]}  Nc6 {[%clk 0:00:41]} 18. h4 {[%clk 0:02:00]}  Bg4 {[%clk 0:00:35]} 19. Qe2 {[%clk 0:01:49]}  Ne5 {[%clk 0:00:25]} 20. Ned2 {[%clk 0:01:47]}  Rf5 {[%clk 0:00:20]} 21. Qe4 {[%clk 0:01:35]}  Bxf3 {[%clk 0:00:08]} 22. Nxf3 {[%clk 0:01:33]}  Nxf3+ {[%clk 0:00:08]} 23. Bxf3 {[%clk 0:01:33]}  Nf6 {[%clk 0:00:09]} 24. Qb7 {[%clk 0:01:30]}  Qd6 {[%clk 0:00:06]} 25. Bg2 {[%clk 0:01:26]}  Rb8 {[%clk 0:00:06]} 26. Qe7 {[%clk 0:01:25]}  Qxe7 {[%clk 0:00:05]} 27. Rxe7 {[%clk 0:01:26]}  Nd5 {[%clk 0:00:04]} 28. Ra7 {[%clk 0:01:20]}  Nc3 {[%clk 0:00:05]} 29. Re1 {[%clk 0:01:15]}  Re5 {[%clk 0:00:05]} 30. Rxe5 {[%clk 0:01:10]}  Bxe5 {[%clk 0:00:05]} 31. Bxc3 {[%clk 0:01:11]}  dxc3 {[%clk 0:00:05]} 32. Bd5 {[%clk 0:01:11]}  Rf8 {[%clk 0:00:06]} 33. a4 {[%clk 0:01:11]}  Kg7 {[%clk 0:00:05]} 34. Kg2 {[%clk 0:01:11]}  Kf6 {[%clk 0:00:04]} 35. f4 {[%clk 0:01:08]}  Bd4 {[%clk 0:00:04]} 36. g4 {[%clk 0:01:07]}  h6 {[%clk 0:00:03]} 37. Kf3 {[%clk 0:01:07]}  g5 {[%clk 0:00:04]} 38. Rb7 {[%clk 0:01:04]}  c4 {[%clk 0:00:03]} 39. Bxc4 {[%clk 0:00:58]}  gxh4 {[%clk 0:00:03]} 40. Kg2 {[%clk 0:00:48]}  Kg6 {[%clk 0:00:03]} 41. Kh3 {[%clk 0:00:47]}  Bf2 {[%clk 0:00:04]} 42. Bd5 {[%clk 0:00:42]}  f5 {[%clk 0:00:04]} 43. Be6 {[%clk 0:00:33]}  fxg4+ {[%clk 0:00:04]} 44. Kxg4 {[%clk 0:00:33]}  Be3 {[%clk 0:00:04]} 45. f5+ {[%clk 0:00:33]}  Kf6 {[%clk 0:00:05]} 46. Kxh4 {[%clk 0:00:31]}  Ra8 {[%clk 0:00:05]} 47. Rf7+ {[%clk 0:00:28]}  Ke5 {[%clk 0:00:05]} 48. Bb3 {[%clk 0:00:28]}  Re8 {[%clk 0:00:04]} 49. Kh5 {[%clk 0:00:28]}  Kd4 {[%clk 0:00:04]} 50. f6 {[%clk 0:00:28]}  Bd2 {[%clk 0:00:04]} 51. Rd7+ {[%clk 0:00:27]}  Ke3 {[%clk 0:00:04]} 52. f7 {[%clk 0:00:28]}  Rf8 {[%clk 0:00:05]} 53. Kg6 {[%clk 0:00:28]}  Ke2 {[%clk 0:00:04]} 54. Kg7 {[%clk 0:00:28]}  Rxf7+ {[%clk 0:00:04]} 55. Rxf7 {[%clk 0:00:26]}  h5 {[%clk 0:00:05]} 56. Rf5 {[%clk 0:00:25]}  h4 {[%clk 0:00:06]} 57. Rh5 {[%clk 0:00:26]}  Be1 {[%clk 0:00:07]} 58. Kg6 {[%clk 0:00:26]}  Kd1 {[%clk 0:00:07]} 59. Kg5 {[%clk 0:00:26]}  Kc1 {[%clk 0:00:07]} 60. Rxh4 {[%clk 0:00:24]}  Kd1 {[%clk 0:00:07]} 1-0

[Event "December 19 Early 2023"]
[Site "https://www.chess.com"]
[Date "2023.12.19"]
[Round "4"]
[White "Lopusiewicz, Piotr"]
[Black "Puzzlebot_1294"]
[Result "1/2-1/2"]
[Board "99"]
[TimeControl "180+1"]
[WhiteFideId "1116029"]
[WhiteElo "2286"]
[BlackElo "2658"]
[WhiteTeam "POL"]
[WhiteClock "0:00:48"]
[BlackClock "0:01:45"]

1. d4 {[%clk 0:03:00]}  Nf6 {[%clk 0:02:59]} 2. c4 {[%clk 0:03:01]}  e6 {[%clk 0:02:59]} 3. Nf3 {[%clk 0:03:01]}  Bb4+ {[%clk 0:02:59]} 4. Bd2 {[%clk 0:03:01]}  Qe7 {[%clk 0:02:59]} 5. g3 {[%clk 0:03:00]}  Nc6 {[%clk 0:02:58]} 6. Bg2 {[%clk 0:03:00]}  Bxd2+ {[%clk 0:02:59]} 7. Qxd2 {[%clk 0:02:49]}  Ne4 {[%clk 0:02:59]} 8. Qc2 {[%clk 0:02:49]}  Qb4+ {[%clk 0:02:59]} 9. Kf1 {[%clk 0:02:49]}  d5 {[%clk 0:02:51]} 10. e3 {[%clk 0:02:49]}  Qxc4+ {[%clk 0:02:50]} 11. Qxc4 {[%clk 0:02:49]}  dxc4 {[%clk 0:02:51]} 12. Nfd2 {[%clk 0:02:48]}  Nd6 {[%clk 0:02:46]} 13. Na3 {[%clk 0:02:42]}  Na5 {[%clk 0:02:44]} 14. Rc1 {[%clk 0:02:38]}  O-O {[%clk 0:02:40]} 15. Naxc4 {[%clk 0:02:35]}  Naxc4 {[%clk 0:02:41]} 16. Nxc4 {[%clk 0:02:35]}  Nxc4 {[%clk 0:02:42]} 17. Rxc4 {[%clk 0:02:35]}  c6 {[%clk 0:02:43]} 18. Ke2 {[%clk 0:02:33]}  Bd7 {[%clk 0:02:40]} 19. a4 {[%clk 0:02:30]}  Rfd8 {[%clk 0:02:38]} 20. Rhc1 {[%clk 0:02:26]}  Rab8 {[%clk 0:02:37]} 21. Rc5 {[%clk 0:02:18]}  Be8 {[%clk 0:02:35]} 22. h4 {[%clk 0:02:17]}  Kf8 {[%clk 0:02:34]} 23. f4 {[%clk 0:02:14]}  Ke7 {[%clk 0:02:34]} 24. g4 {[%clk 0:02:12]}  Kd6 {[%clk 0:02:33]} 25. g5 {[%clk 0:02:11]}  f6 {[%clk 0:02:31]} 26. Bf3 {[%clk 0:02:08]}  Ke7 {[%clk 0:02:31]} 27. R5c3 {[%clk 0:02:05]}  Bf7 {[%clk 0:02:18]} 28. a5 {[%clk 0:02:04]}  a6 {[%clk 0:02:17]} 29. b4 {[%clk 0:01:59]}  Kf8 {[%clk 0:02:12]} 30. Rc5 {[%clk 0:01:51]}  Ke7 {[%clk 0:02:10]} 31. Rg1 {[%clk 0:01:51]}  Rg8 {[%clk 0:02:09]} 32. h5 {[%clk 0:01:49]}  h6 {[%clk 0:02:07]} 33. e4 {[%clk 0:01:41]}  Rgd8 {[%clk 0:02:05]} 34. Ke3 {[%clk 0:01:40]}  Rd7 {[%clk 0:02:00]} 35. g6 {[%clk 0:01:35]}  Bg8 {[%clk 0:02:00]} 36. Rd1 {[%clk 0:01:21]}  Rbd8 {[%clk 0:01:57]} 37. e5 {[%clk 0:01:22]}  f5 {[%clk 0:01:52]} 38. Bg2 {[%clk 0:01:12]}  Kf8 {[%clk 0:01:51]} 39. Rd2 {[%clk 0:01:03]}  Ke7 {[%clk 0:01:50]} 40. Rd1 {[%clk 0:00:48]}  Ke8 {[%clk 0:01:49]} 41. Rd2 {[%clk 0:00:49]}  Kf8 {[%clk 0:01:49]} 42. Rd1 {[%clk 0:00:49]}  Ke7 {[%clk 0:01:45]} 43. Rd2 {[%clk 0:00:48]} 1/2-1/2